[Event "Late-Titled-Tuesday-Blitz-May-14-2024"]
[Site "Chess.com"]
[Date "2024.05.14"]
[Round "7"]
[White "Flaccidmoves"]
[Black "Oleg_Papayan"]
[Result "0-1"]
[WhiteElo "2433"]
[BlackElo "2619"]
[TimeControl "180+1"]
[EndTime "15:18:41 PDT"]
[Termination "Oleg_Papayan won by resignation"]

1. d4 {[%clk 0:03:00.9]} 1... d5 {[%clk 0:02:57.6]} 2. c4 {[%clk 0:03:00.8]}
2... dxc4 {[%clk 0:02:57.8]} 3. e4 {[%clk 0:03:00.6]} 3... e5 {[%clk 0:02:58.2]}
4. Nf3 {[%clk 0:03:00.7]} 4... exd4 {[%clk 0:02:58.8]} 5. Bxc4 {[%clk
0:03:00.6]} 5... Be6 {[%clk 0:02:59.2]} 6. Bxe6 {[%clk 0:02:52.8]} 6... fxe6
{[%clk 0:02:59.5]} 7. Qb3 {[%clk 0:02:44.7]} 7... Nc6 {[%clk 0:02:43.1]} 8.
Qxe6+ {[%clk 0:02:36.1]} 8... Qe7 {[%clk 0:02:39.2]} 9. Ng5 {[%clk 0:02:08.5]}
9... Nf6 {[%clk 0:02:31]} 10. O-O {[%clk 0:02:05.9]} 10... h6 {[%clk 0:02:26.4]}
11. Qh3 {[%clk 0:02:03]} 11... Qd7 {[%clk 0:02:15.1]} 12. Ne6 {[%clk 0:01:58.1]}
12... Nd8 {[%clk 0:02:13.6]} 13. Nf4 {[%clk 0:01:44.2]} 13... Qxh3 {[%clk
0:02:12.8]} 14. gxh3 {[%clk 0:01:36.9]} 14... Kf7 {[%clk 0:01:52.9]} 15. e5
{[%clk 0:01:36.6]} 15... Nd7 {[%clk 0:01:50.2]} 16. Re1 {[%clk 0:01:30.4]} 16...
Ne6 {[%clk 0:01:49.2]} 17. Nd3 {[%clk 0:01:24.4]} 17... c5 {[%clk 0:01:46.8]}
18. Nd2 {[%clk 0:01:19]} 18... b5 {[%clk 0:01:43.2]} 19. b3 {[%clk 0:01:18.1]}
19... Nb6 {[%clk 0:01:35.3]} 20. Ne4 {[%clk 0:01:13.8]} 20... c4 {[%clk
0:01:32.9]} 21. Nf4 {[%clk 0:01:07.3]} 21... g5 {[%clk 0:01:27]} 22. Nxe6 {[%clk
0:00:59.1]} 22... Kxe6 {[%clk 0:01:27.9]} 23. Bb2 {[%clk 0:00:58.2]} 23... c3
{[%clk 0:01:14.8]} 24. Bxc3 {[%clk 0:00:51.2]} 24... dxc3 {[%clk 0:01:14.6]} 25.
Nxc3 {[%clk 0:00:52.1]} 25... Bb4 {[%clk 0:00:59.3]} 26. Nxb5 {[%clk 0:00:51.9]}
26... Bxe1 {[%clk 0:00:59.5]} 27. Nc7+ {[%clk 0:00:51.6]} 27... Kxe5 {[%clk
0:00:59.4]} 28. Nxa8 {[%clk 0:00:51.6]} 28... Bxf2+ {[%clk 0:00:58.4]} 29. Kxf2
{[%clk 0:00:49]} 29... Rxa8 {[%clk 0:00:58.9]} 30. Kg3 {[%clk 0:00:43.9]} 30...
h5 {[%clk 0:00:55.3]} 31. h4 {[%clk 0:00:40.4]} 31... g4 {[%clk 0:00:53.6]} 32.
Re1+ {[%clk 0:00:36.7]} 32... Kf5 {[%clk 0:00:52.5]} 33. Re7 {[%clk 0:00:29.5]}
33... Nd5 {[%clk 0:00:49.1]} 34. Rg7 {[%clk 0:00:26]} 34... Nf6 {[%clk
0:00:45.9]} 35. b4 {[%clk 0:00:19.3]} 35... Ne4+ {[%clk 0:00:43.8]} 36. Kg2
{[%clk 0:00:19.6]} 36... Rb8 {[%clk 0:00:32.5]} 37. a3 {[%clk 0:00:17.4]} 37...
a5 {[%clk 0:00:33.1]} 38. bxa5 {[%clk 0:00:15]} 38... Ra8 {[%clk 0:00:30.9]} 39.
Rf7+ {[%clk 0:00:13.9]} 39... Ke6 {[%clk 0:00:25.9]} 40. Rh7 {[%clk 0:00:12.3]}
40... Nf6 {[%clk 0:00:26.4]} 41. Rh6 {[%clk 0:00:09.9]} 41... Rxa5 {[%clk
0:00:26.6]} 42. h3 {[%clk 0:00:09.1]} 42... gxh3+ {[%clk 0:00:21.9]} 43. Kxh3
{[%clk 0:00:09.5]} 43... Rxa3+ {[%clk 0:00:20.5]} 44. Kg2 {[%clk 0:00:09.7]}
44... Ra8 {[%clk 0:00:20.5]} 45. Rg6 {[%clk 0:00:09.8]} 45... Kf5 {[%clk
0:00:18.8]} 46. Rg5+ {[%clk 0:00:09.7]} 46... Kf4 {[%clk 0:00:19.4]} 47. Rb5
{[%clk 0:00:10.3]} 47... Ra2+ {[%clk 0:00:19]} 48. Kh3 {[%clk 0:00:09.6]} 48...
Ra3+ {[%clk 0:00:19]} 49. Kg2 {[%clk 0:00:09.3]} 49... Re3 {[%clk 0:00:19.5]}
50. Ra5 {[%clk 0:00:07.5]} 50... Re5 {[%clk 0:00:16.6]} 51. Ra4+ {[%clk
0:00:07.2]} 51... Kf5 {[%clk 0:00:17]} 52. Rb4 {[%clk 0:00:07.2]} 52... Ng4
{[%clk 0:00:15.5]} 53. Ra4 {[%clk 0:00:07.1]} 53... Nh6 {[%clk 0:00:15.1]} 54.
Kg3 {[%clk 0:00:06.6]} 54... Kf6 {[%clk 0:00:14]} 55. Ra6+ {[%clk 0:00:06.3]}
55... Re6 {[%clk 0:00:14.5]} 56. Ra5 {[%clk 0:00:06.5]} 56... Nf5+ {[%clk
0:00:15.4]} 57. Kf4 {[%clk 0:00:05.6]} 57... Ng7 {[%clk 0:00:11.4]} 58. Rb5
{[%clk 0:00:05.1]} 58... Rc6 {[%clk 0:00:09.4]} 59. Ra5 {[%clk 0:00:05.2]} 59...
Rc4+ {[%clk 0:00:09.7]} 60. Kg3 {[%clk 0:00:05.8]} 60... Nf5+ {[%clk 0:00:09.7]}
61. Kh3 {[%clk 0:00:06.2]} 61... Rxh4+ {[%clk 0:00:09.7]} 62. Kg2 {[%clk
0:00:06.8]} 62... Rg4+ {[%clk 0:00:09.7]} 63. Kh3 {[%clk 0:00:06.8]} 63... Rc4
{[%clk 0:00:10.2]} 64. Kh2 {[%clk 0:00:06.3]} 64... Kg5 {[%clk 0:00:10.3]} 65.
Kh3 {[%clk 0:00:06.4]} 65... Rc3+ {[%clk 0:00:10.2]} 66. Kh2 {[%clk 0:00:06.9]}
66... h4 {[%clk 0:00:10.7]} 67. Kg2 {[%clk 0:00:07.3]} 67... Kg4 {[%clk
0:00:10.4]} 68. Ra4+ {[%clk 0:00:07.3]} 68... Kg5 {[%clk 0:00:10.9]} 69. Rb4
{[%clk 0:00:07.5]} 69... Rc2+ {[%clk 0:00:11]} 70. Kh3 {[%clk 0:00:07.3]} 70...
Rc3+ {[%clk 0:00:09.4]} 71. Kg2 {[%clk 0:00:07.3]} 71... Ra3 {[%clk 0:00:05.9]}
72. Kh2 {[%clk 0:00:06.1]} 72... Rg3 {[%clk 0:00:06.5]} 73. Ra4 {[%clk
0:00:06.2]} 73... Rg4 {[%clk 0:00:06.9]} 74. Ra8 {[%clk 0:00:05.2]} 74... Rf4
{[%clk 0:00:07.3]} 75. Rg8+ {[%clk 0:00:04.9]} 75... Kh5 {[%clk 0:00:07.8]} 76.
Rh8+ {[%clk 0:00:05.2]} 76... Kg4 {[%clk 0:00:08.2]} 77. Rg8+ {[%clk 0:00:05.5]}
77... Kf3 {[%clk 0:00:08.6]} 78. Ra8 {[%clk 0:00:05.4]} 78... Re4 {[%clk
0:00:05.8]} 79. Kh3 {[%clk 0:00:05.4]} 79... Kf4 {[%clk 0:00:05.1]} 80. Ra3
{[%clk 0:00:05.6]} 80... Re3+ {[%clk 0:00:04.6]} 81. Rxe3 {[%clk 0:00:04.8]}
81... Kxe3 {[%clk 0:00:05.5]} 82. Kh2 {[%clk 0:00:03.7]} 82... Kf3 {[%clk
0:00:05.5]} 83. Kh1 {[%clk 0:00:04]} 83... Kg3 {[%clk 0:00:05.7]} 84. Kg1 {[%clk
0:00:04.4]} 84... h3 {[%clk 0:00:05.8]} 85. Kh1 {[%clk 0:00:05.3]} 85... Nh4
{[%clk 0:00:05.6]} 86. Kg1 {[%clk 0:00:05.6]} 86... Nf3+ {[%clk 0:00:05.7]} 87.
Kh1 {[%clk 0:00:06.5]} 87... Ng5 {[%clk 0:00:06]} 88. Kg1 {[%clk 0:00:06.7]}
88... Ne4 {[%clk 0:00:06.6]} 89. Kh1 {[%clk 0:00:07.6]} 89... Nf2+ {[%clk
0:00:07]} 90. Kg1 {[%clk 0:00:08.5]} 90... h2+ {[%clk 0:00:07.6]} 91. Kf1 {[%clk
0:00:09.4]} 91... h1=Q+ {[%clk 0:00:08]} 92. Ke2 {[%clk 0:00:10.3]} 92... Qd1+
{[%clk 0:00:08.2]} 0-1

[Event "Late-Titled-Tuesday-Blitz-May-14-2024"]
[Site "Chess.com"]
[Date "2024.05.14"]
[Round "8"]
[White "MKlose11"]
[Black "szachmistrz2500"]
[Result "1-0"]
[WhiteElo "2630"]
[BlackElo "2496"]
[TimeControl "180+1"]
[EndTime "15:22:37 PDT"]
[Termination "MKlose11 won by resignation"]

1. e4 {[%clk 0:02:57]} 1... c5 {[%clk 0:02:59.4]} 2. Nc3 {[%clk 0:02:56.7]} 2...
e6 {[%clk 0:02:58.8]} 3. d3 {[%clk 0:02:57.6]} 3... Nc6 {[%clk 0:02:57.3]} 4. g3
{[%clk 0:02:58.5]} 4... g6 {[%clk 0:02:57.3]} 5. Bg2 {[%clk 0:02:59.4]} 5... Bg7
{[%clk 0:02:57.7]} 6. Be3 {[%clk 0:02:59.6]} 6... Nd4 {[%clk 0:02:56.5]} 7. Qd2
{[%clk 0:02:59.4]} 7... Ne7 {[%clk 0:02:53.1]} 8. Nd1 {[%clk 0:02:59.4]} 8... d6
{[%clk 0:02:36.2]} 9. c3 {[%clk 0:02:49.2]} 9... Ndc6 {[%clk 0:02:36]} 10. Bh6
{[%clk 0:02:49.8]} 10... Bxh6 {[%clk 0:02:02.7]} 11. Qxh6 {[%clk 0:02:50.7]}
11... Ng8 {[%clk 0:02:01.8]} 12. Qd2 {[%clk 0:02:49]} 12... Qe7 {[%clk 0:01:54]}
13. Ne2 {[%clk 0:02:47.9]} 13... f5 {[%clk 0:01:53]} 14. d4 {[%clk 0:02:47.1]}
14... cxd4 {[%clk 0:01:46.2]} 15. Nxd4 {[%clk 0:02:47]} 15... fxe4 {[%clk
0:01:45.1]} 16. Bxe4 {[%clk 0:02:44.6]} 16... Nf6 {[%clk 0:01:45.3]} 17. Nxc6
{[%clk 0:02:42.9]} 17... Nxe4 {[%clk 0:01:41.2]} 18. Nxe7 {[%clk 0:02:42.5]}
18... Nxd2 {[%clk 0:01:40.9]} 19. Nxc8 {[%clk 0:02:43]} 19... Nf3+ {[%clk
0:01:35.4]} 20. Ke2 {[%clk 0:02:42]} 20... Nd4+ {[%clk 0:01:30.2]} 21. cxd4
{[%clk 0:02:41.2]} 21... Rxc8 {[%clk 0:01:31.1]} 22. Ne3 {[%clk 0:02:40.8]} 1-0

[Event "Late-Titled-Tuesday-Blitz-May-14-2024"]
[Site "Chess.com"]
[Date "2024.05.14"]
[Round "8"]
[White "zverr1"]
[Black "Hirna2005"]
[Result "0-1"]
[WhiteElo "2441"]
[BlackElo "2325"]
[TimeControl "180+1"]
[EndTime "15:22:51 PDT"]
[Termination "Hirna2005 won by checkmate"]

1. d4 {[%clk 0:03:00.9]} 1... g6 {[%clk 0:02:57.2]} 2. c4 {[%clk 0:03:01.8]}
2... Bg7 {[%clk 0:02:55.3]} 3. Nf3 {[%clk 0:03:02.3]} 3... d6 {[%clk 0:02:55.1]}
4. g3 {[%clk 0:03:03.2]} 4... Nf6 {[%clk 0:02:53.7]} 5. Bg2 {[%clk 0:03:04.1]}
5... O-O {[%clk 0:02:53.6]} 6. O-O {[%clk 0:03:05]} 6... Nc6 {[%clk 0:02:52.8]}
7. Nc3 {[%clk 0:03:05.9]} 7... Bf5 {[%clk 0:02:52.5]} 8. Nh4 {[%clk 0:03:02.7]}
8... Bd7 {[%clk 0:02:52.1]} 9. f4 {[%clk 0:03:02.8]} 9... Qc8 {[%clk 0:02:51.4]}
10. d5 {[%clk 0:02:59.7]} 10... Na5 {[%clk 0:02:47.5]} 11. Qd3 {[%clk
0:02:56.2]} 11... b6 {[%clk 0:02:43]} 12. b4 {[%clk 0:02:53.9]} 12... Nb7 {[%clk
0:02:43]} 13. Bb2 {[%clk 0:02:54.6]} 13... a5 {[%clk 0:02:43.1]} 14. a3 {[%clk
0:02:55]} 14... Bh3 {[%clk 0:02:29.8]} 15. e4 {[%clk 0:02:52.8]} 15... Bxg2
{[%clk 0:02:27.9]} 16. Kxg2 {[%clk 0:02:53.7]} 16... Qg4 {[%clk 0:02:16.2]} 17.
Nb5 {[%clk 0:02:31.9]} 17... axb4 {[%clk 0:02:07.7]} 18. axb4 {[%clk 0:02:30.9]}
18... Rxa1 {[%clk 0:02:07.5]} 19. Bxa1 {[%clk 0:02:31.8]} 19... Ra8 {[%clk
0:02:03.4]} 20. Nxc7 {[%clk 0:02:17.6]} 20... Ra2+ {[%clk 0:02:03]} 21. Kh1
{[%clk 0:02:18.3]} 21... Qh3 {[%clk 0:01:56.8]} 22. Nf3 {[%clk 0:02:17.2]} 22...
Ng4 {[%clk 0:01:53.6]} 23. Bxg7 {[%clk 0:02:09.1]} 23... Qg2# {[%clk 0:01:52]}
0-1

[Event "Late-Titled-Tuesday-Blitz-May-14-2024"]
[Site "Chess.com"]
[Date "2024.05.14"]
[Round "8"]
[White "ural58"]
[Black "Stanbad1"]
[Result "0-1"]
[WhiteElo "2479"]
[BlackElo "2619"]
[TimeControl "180+1"]
[EndTime "15:23:00 PDT"]
[Termination "Stanbad1 won by resignation"]

1. e4 {[%clk 0:03:00.9]} 1... e6 {[%clk 0:02:59.5]} 2. d4 {[%clk 0:02:59.7]}
2... d5 {[%clk 0:03:00.1]} 3. Nc3 {[%clk 0:02:59]} 3... Nf6 {[%clk 0:03:00.2]}
4. Bg5 {[%clk 0:02:58.1]} 4... Bb4 {[%clk 0:02:59.8]} 5. e5 {[%clk 0:02:52.1]}
5... h6 {[%clk 0:02:59.4]} 6. exf6 {[%clk 0:02:52.2]} 6... hxg5 {[%clk 0:02:59]}
7. fxg7 {[%clk 0:02:52.2]} 7... Rg8 {[%clk 0:02:59.7]} 8. a3 {[%clk 0:02:51.9]}
8... Bxc3+ {[%clk 0:02:50.8]} 9. bxc3 {[%clk 0:02:51.3]} 9... Qf6 {[%clk
0:02:51.3]} 10. h4 {[%clk 0:02:50.1]} 10... gxh4 {[%clk 0:02:50.8]} 11. Qh5
{[%clk 0:02:48.4]} 11... Qxg7 {[%clk 0:02:50.8]} 12. Qxh4 {[%clk 0:02:46.8]}
12... c5 {[%clk 0:02:50.7]} 13. Nf3 {[%clk 0:02:46]} 13... Nc6 {[%clk
0:02:50.3]} 14. Bb5 {[%clk 0:02:14]} 14... Bd7 {[%clk 0:02:48.6]} 15. Bxc6
{[%clk 0:02:12.8]} 15... Bxc6 {[%clk 0:02:36.7]} 16. g3 {[%clk 0:02:09.5]} 16...
f6 {[%clk 0:02:30.4]} 17. Qh5+ {[%clk 0:02:04.5]} 17... Kd7 {[%clk 0:02:27.6]}
18. dxc5 {[%clk 0:01:59.9]} 18... Rh8 {[%clk 0:02:26.3]} 19. Qxh8 {[%clk
0:01:34.1]} 19... Rxh8 {[%clk 0:02:24.6]} 20. Rxh8 {[%clk 0:01:29.7]} 20... Qxh8
{[%clk 0:02:25.5]} 21. Ke2 {[%clk 0:01:28.9]} 21... e5 {[%clk 0:02:20.6]} 0-1

[Event "Late-Titled-Tuesday-Blitz-May-14-2024"]
[Site "Chess.com"]
[Date "2024.05.14"]
[Round "8"]
[White "campochess"]
[Black "howitzer14"]
[Result "0-1"]
[WhiteElo "2123"]
[BlackElo "2999"]
[TimeControl "180+1"]
[EndTime "15:23:07 PDT"]
[Termination "howitzer14 won by checkmate"]

1. Nf3 {[%clk 0:03:00.1]} 1... f5 {[%clk 0:02:53]} 2. e3 {[%clk 0:02:52.7]} 2...
Nf6 {[%clk 0:02:53.9]} 3. d4 {[%clk 0:02:52.5]} 3... g6 {[%clk 0:02:47.9]} 4. g3
{[%clk 0:02:52.2]} 4... Bg7 {[%clk 0:02:48.8]} 5. Bg2 {[%clk 0:02:52]} 5... O-O
{[%clk 0:02:49]} 6. c4 {[%clk 0:02:52]} 6... d6 {[%clk 0:02:49.9]} 7. Nc3 {[%clk
0:02:51.9]} 7... c6 {[%clk 0:02:50.5]} 8. O-O {[%clk 0:02:51.8]} 8... Qe8 {[%clk
0:02:51]} 9. Re1 {[%clk 0:02:50.3]} 9... e5 {[%clk 0:02:49.5]} 10. dxe5 {[%clk
0:02:48.3]} 10... dxe5 {[%clk 0:02:50.4]} 11. b3 {[%clk 0:02:41.3]} 11... e4
{[%clk 0:02:44.4]} 12. Nd4 {[%clk 0:02:37.2]} 12... Nbd7 {[%clk 0:02:44.9]} 13.
Ba3 {[%clk 0:02:35.9]} 13... Rf7 {[%clk 0:02:45.5]} 14. c5 {[%clk 0:02:34]}
14... Ne5 {[%clk 0:02:42.8]} 15. Bf1 {[%clk 0:02:32.9]} 15... Be6 {[%clk
0:02:34.2]} 16. f4 {[%clk 0:02:32]} 16... exf3 {[%clk 0:02:32.4]} 17. Nxf3
{[%clk 0:02:31.2]} 17... Nfg4 {[%clk 0:02:12.3]} 18. Ng5 {[%clk 0:02:27.6]}
18... Rd7 {[%clk 0:02:10.2]} 19. Qe2 {[%clk 0:02:21.6]} 19... Nd3 {[%clk
0:02:04.5]} 20. Rec1 {[%clk 0:02:10.8]} 20... Nxc1 {[%clk 0:01:56.3]} 21. Rxc1
{[%clk 0:02:08.5]} 21... Rad8 {[%clk 0:01:56.7]} 22. Nxe6 {[%clk 0:01:58.4]}
22... Qxe6 {[%clk 0:01:57.6]} 23. e4 {[%clk 0:01:57.4]} 23... Rd2 {[%clk
0:01:55.1]} 24. Qc4 {[%clk 0:01:55.7]} 24... Bd4+ {[%clk 0:01:54.9]} 25. Kh1
{[%clk 0:01:53.8]} 25... Rxh2# {[%clk 0:01:54.4]} 0-1

[Event "Late-Titled-Tuesday-Blitz-May-14-2024"]
[Site "Chess.com"]
[Date "2024.05.14"]
[Round "8"]
[White "mostafa_sakha"]
[Black "Gangster-accountant01"]
[Result "0-1"]
[WhiteElo "2386"]
[BlackElo "2591"]
[TimeControl "180+1"]
[EndTime "15:23:38 PDT"]
[Termination "Gangster-accountant01 won by resignation"]

1. f3 {[%clk 0:02:59.6]} 1... d5 {[%clk 0:02:58.8]} 2. d4 {[%clk 0:02:53.4]}
2... c5 {[%clk 0:02:58.9]} 3. e3 {[%clk 0:02:46.5]} 3... Nc6 {[%clk 0:02:58.4]}
4. Nc3 {[%clk 0:02:43.8]} 4... cxd4 {[%clk 0:02:59.3]} 5. exd4 {[%clk
0:02:43.4]} 5... f6 {[%clk 0:03:00.2]} 6. Bb5 {[%clk 0:02:38.3]} 6... e6 {[%clk
0:03:00.3]} 7. Nge2 {[%clk 0:02:37.6]} 7... Bd6 {[%clk 0:03:00.4]} 8. Bf4 {[%clk
0:02:35.3]} 8... Ne7 {[%clk 0:03:00.7]} 9. Qd2 {[%clk 0:02:33.5]} 9... a6 {[%clk
0:03:00.3]} 10. Bd3 {[%clk 0:02:25.9]} 10... Bxf4 {[%clk 0:02:49.9]} 11. Qxf4
{[%clk 0:02:24.7]} 11... Nb4 {[%clk 0:02:50.1]} 12. O-O-O {[%clk 0:02:22.7]}
12... Bd7 {[%clk 0:02:48.9]} 13. Rhe1 {[%clk 0:02:17.7]} 13... Rc8 {[%clk
0:02:44.2]} 14. Kb1 {[%clk 0:02:17]} 14... Qa5 {[%clk 0:02:39.3]} 15. a3 {[%clk
0:02:06.5]} 15... Nxd3 {[%clk 0:02:37.8]} 16. Rxd3 {[%clk 0:02:07.4]} 16... Bb5
{[%clk 0:02:36.9]} 17. Nxb5 {[%clk 0:02:05.7]} 17... Qxe1+ {[%clk 0:02:36.8]}
18. Nc1 {[%clk 0:02:00.3]} 18... axb5 {[%clk 0:02:36.5]} 19. Re3 {[%clk
0:01:58]} 19... Qd2 {[%clk 0:02:36.6]} 20. c3 {[%clk 0:01:54.4]} 20... O-O
{[%clk 0:02:35]} 21. Nb3 {[%clk 0:01:51.6]} 21... Ng6 {[%clk 0:02:31.1]} 22.
Nxd2 {[%clk 0:01:42.8]} 22... Nxf4 {[%clk 0:02:31.3]} 23. g3 {[%clk 0:01:42.8]}
23... Ng6 {[%clk 0:02:31.7]} 24. Rxe6 {[%clk 0:01:42.7]} 24... Rfe8 {[%clk
0:02:32.6]} 25. Rb6 {[%clk 0:01:42.5]} 25... Re2 {[%clk 0:02:32.9]} 26. Nb3
{[%clk 0:01:42]} 26... Rxh2 {[%clk 0:02:33.2]} 27. Rxb5 {[%clk 0:01:41.5]} 27...
Rg2 {[%clk 0:02:33.7]} 28. g4 {[%clk 0:01:40.9]} 28... Nh4 {[%clk 0:02:32.5]}
29. Rxd5 {[%clk 0:01:35.2]} 29... Nxf3 {[%clk 0:02:32.4]} 30. Rd7 {[%clk
0:01:34.7]} 30... Rxg4 {[%clk 0:02:32.3]} 31. Rxb7 {[%clk 0:01:34.2]} 31... h5
{[%clk 0:02:32.5]} 32. d5 {[%clk 0:01:30.6]} 32... h4 {[%clk 0:02:31.9]} 33. d6
{[%clk 0:01:30.7]} 33... Ne5 {[%clk 0:02:28.4]} 34. d7 {[%clk 0:01:24.8]} 34...
Nxd7 {[%clk 0:02:28.4]} 35. Nc5 {[%clk 0:01:25.3]} 35... Nxc5 {[%clk 0:02:28]}
0-1

[Event "Late-Titled-Tuesday-Blitz-May-14-2024"]
[Site "Chess.com"]
[Date "2024.05.14"]
[Round "8"]
[White "oskariot"]
[Black "MagnusCarlsen"]
[Result "0-1"]
[WhiteElo "2797"]
[BlackElo "3198"]
[TimeControl "180+1"]
[EndTime "15:23:49 PDT"]
[Termination "MagnusCarlsen won by resignation"]

1. e4 {[%clk 0:03:00.9]} 1... Nf6 {[%clk 0:03:00.9]} 2. e5 {[%clk 0:03:00.6]}
2... Ng8 {[%clk 0:03:00.9]} 3. d4 {[%clk 0:03:00.7]} 3... d6 {[%clk 0:03:00.8]}
4. Nf3 {[%clk 0:02:59.3]} 4... c6 {[%clk 0:02:59.9]} 5. Be2 {[%clk 0:02:57.5]}
5... Bg4 {[%clk 0:02:59.3]} 6. O-O {[%clk 0:02:57]} 6... Bxf3 {[%clk 0:02:56.7]}
7. Bxf3 {[%clk 0:02:57.1]} 7... dxe5 {[%clk 0:02:57.6]} 8. dxe5 {[%clk 0:02:58]}
8... Qxd1 {[%clk 0:02:57.2]} 9. Rxd1 {[%clk 0:02:58.9]} 9... e6 {[%clk
0:02:57.5]} 10. Nc3 {[%clk 0:02:50.9]} 10... Nd7 {[%clk 0:02:55.9]} 11. Bf4
{[%clk 0:02:47.4]} 11... Ne7 {[%clk 0:02:55.6]} 12. Bg3 {[%clk 0:02:07.4]} 12...
Nf5 {[%clk 0:02:53.6]} 13. Re1 {[%clk 0:02:01.5]} 13... Nxg3 {[%clk 0:02:49.6]}
14. hxg3 {[%clk 0:02:01.4]} 14... O-O-O {[%clk 0:02:47.7]} 15. Rad1 {[%clk
0:01:54.1]} 15... g6 {[%clk 0:02:47.7]} 16. Bg4 {[%clk 0:01:28.9]} 16... h5
{[%clk 0:02:43.1]} 17. Bh3 {[%clk 0:01:29]} 17... g5 {[%clk 0:02:42.5]} 18. g4
{[%clk 0:01:18.6]} 18... hxg4 {[%clk 0:02:41.7]} 19. Bxg4 {[%clk 0:01:19.5]}
19... Bg7 {[%clk 0:02:41.4]} 20. Ne4 {[%clk 0:01:14.5]} 20... Nxe5 {[%clk
0:02:41]} 21. Be2 {[%clk 0:01:14.7]} 21... g4 {[%clk 0:02:32.5]} 22. Nc5 {[%clk
0:01:04]} 22... Kc7 {[%clk 0:02:30]} 23. Nd3 {[%clk 0:01:01.5]} 23... g3 {[%clk
0:02:27.8]} 24. fxg3 {[%clk 0:00:53.7]} 24... Nxd3 {[%clk 0:02:19]} 25. Rxd3
{[%clk 0:00:51.1]} 25... Bd4+ {[%clk 0:02:18.2]} 0-1

[Event "Late-Titled-Tuesday-Blitz-May-14-2024"]
[Site "Chess.com"]
[Date "2024.05.14"]
[Round "8"]
[White "HanSchut"]
[Black "KatakuriDono"]
[Result "0-1"]
[WhiteElo "2358"]
[BlackElo "2309"]
[TimeControl "180+1"]
[EndTime "15:25:01 PDT"]
[Termination "KatakuriDono won by checkmate"]

1. e4 {[%clk 0:03:00.9]} 1... c5 {[%clk 0:02:59.1]} 2. Nf3 {[%clk 0:03:01.3]}
2... Nc6 {[%clk 0:02:59.2]} 3. d4 {[%clk 0:03:01.3]} 3... cxd4 {[%clk
0:02:59.4]} 4. Nxd4 {[%clk 0:03:02.2]} 4... Qb6 {[%clk 0:02:59.3]} 5. Nb3 {[%clk
0:03:00.7]} 5... Nf6 {[%clk 0:02:59.3]} 6. Nc3 {[%clk 0:02:53.6]} 6... e6 {[%clk
0:02:59.6]} 7. Be3 {[%clk 0:02:53.2]} 7... Qc7 {[%clk 0:02:59.6]} 8. Bd3 {[%clk
0:02:49.4]} 8... a6 {[%clk 0:02:59.7]} 9. O-O {[%clk 0:02:49.3]} 9... b5 {[%clk
0:02:58.5]} 10. a3 {[%clk 0:02:46.5]} 10... Bb7 {[%clk 0:02:56.5]} 11. f4 {[%clk
0:02:46.3]} 11... d6 {[%clk 0:02:56.1]} 12. Qe1 {[%clk 0:02:45.9]} 12... Be7
{[%clk 0:02:51.4]} 13. Qg3 {[%clk 0:02:41.6]} 13... O-O {[%clk 0:02:49.3]} 14.
Rae1 {[%clk 0:02:28.3]} 14... b4 {[%clk 0:02:43.7]} 15. a4 {[%clk 0:02:25.7]}
15... bxc3 {[%clk 0:02:43.1]} 16. bxc3 {[%clk 0:02:22.9]} 16... Rfe8 {[%clk
0:02:29.2]} 17. f5 {[%clk 0:02:13.1]} 17... e5 {[%clk 0:02:22.9]} 18. Bh6 {[%clk
0:02:04.7]} 18... Bf8 {[%clk 0:02:22.8]} 19. Bg5 {[%clk 0:01:49.6]} 19... Kh8
{[%clk 0:02:19]} 20. Bxf6 {[%clk 0:01:40.4]} 20... gxf6 {[%clk 0:02:19.9]} 21.
Rf3 {[%clk 0:01:36.8]} 21... Be7 {[%clk 0:02:11]} 22. Qh4 {[%clk 0:01:32.7]}
22... Rg8 {[%clk 0:02:10.5]} 23. Ree3 {[%clk 0:01:31.2]} 23... Rg7 {[%clk
0:02:10.2]} 24. Rh3 {[%clk 0:01:29.5]} 24... Rag8 {[%clk 0:02:10]} 25. Reg3
{[%clk 0:01:26.6]} 25... Na5 {[%clk 0:01:55.3]} 26. Nc1 {[%clk 0:01:20.7]} 26...
Qxc3 {[%clk 0:01:52]} 27. Kf2 {[%clk 0:01:13.3]} 27... d5 {[%clk 0:01:39.6]} 28.
Ne2 {[%clk 0:01:09.9]} 28... Qd2 {[%clk 0:01:36.7]} 29. exd5 {[%clk 0:00:37.2]}
29... Bc5+ {[%clk 0:01:36.3]} 30. Kf1 {[%clk 0:00:26.5]} 30... Qd1# {[%clk
0:01:36.3]} 0-1

[Event "Late-Titled-Tuesday-Blitz-May-14-2024"]
[Site "Chess.com"]
[Date "2024.05.14"]
[Round "8"]
[White "VladimirBugayev"]
[Black "simaopdias"]
[Result "1-0"]
[WhiteElo "2317"]
[BlackElo "2217"]
[TimeControl "180+1"]
[EndTime "15:25:01 PDT"]
[Termination "VladimirBugayev won by checkmate"]

1. e4 {[%clk 0:03:00.9]} 1... c5 {[%clk 0:02:59.3]} 2. a3 {[%clk 0:02:57.5]}
2... g6 {[%clk 0:03:00.2]} 3. h4 {[%clk 0:02:57.1]} 3... h5 {[%clk 0:02:59.9]}
4. Nc3 {[%clk 0:02:55.7]} 4... Bg7 {[%clk 0:02:59.9]} 5. Bc4 {[%clk 0:02:56.3]}
5... Nc6 {[%clk 0:03:00]} 6. d3 {[%clk 0:02:56.5]} 6... Nf6 {[%clk 0:02:59.4]}
7. Nf3 {[%clk 0:02:54.2]} 7... O-O {[%clk 0:02:59.3]} 8. Bg5 {[%clk 0:02:49.1]}
8... d6 {[%clk 0:02:59.4]} 9. Qd2 {[%clk 0:02:48.9]} 9... Bg4 {[%clk 0:02:54.1]}
10. Nh2 {[%clk 0:02:48.1]} 10... Be6 {[%clk 0:02:53.6]} 11. Bxe6 {[%clk
0:02:33.5]} 11... fxe6 {[%clk 0:02:53.3]} 12. Bh6 {[%clk 0:02:33.7]} 12... Nd4
{[%clk 0:02:40.6]} 13. Bxg7 {[%clk 0:02:32.9]} 13... Kxg7 {[%clk 0:02:40.5]} 14.
Ne2 {[%clk 0:02:25.1]} 14... e5 {[%clk 0:02:33.9]} 15. c3 {[%clk 0:02:19.5]}
15... Nb3 {[%clk 0:02:33.4]} 16. Qd1 {[%clk 0:02:18.3]} 16... Nxa1 {[%clk
0:02:33.2]} 17. Qxa1 {[%clk 0:02:19.2]} 17... d5 {[%clk 0:02:25.9]} 18. O-O
{[%clk 0:02:13.3]} 18... dxe4 {[%clk 0:02:25.6]} 19. dxe4 {[%clk 0:02:13.5]}
19... Nxe4 {[%clk 0:02:25.7]} 20. Nf3 {[%clk 0:02:13.5]} 20... Nd2 {[%clk
0:02:23]} 21. Ng5 {[%clk 0:02:08.3]} 21... Nxf1 {[%clk 0:02:21.5]} 22. Ne6+
{[%clk 0:02:08]} 22... Kg8 {[%clk 0:02:18.7]} 23. Nxd8 {[%clk 0:02:08.9]} 23...
Raxd8 {[%clk 0:02:15.4]} 24. Qxf1 {[%clk 0:01:54]} 24... Rd2 {[%clk 0:02:15.6]}
25. Ng3 {[%clk 0:01:51]} 25... Kg7 {[%clk 0:02:02.6]} 26. Ne4 {[%clk 0:01:50.2]}
26... Rxb2 {[%clk 0:01:56.4]} 27. Qc1 {[%clk 0:01:38.7]} 27... Re2 {[%clk
0:01:47.2]} 28. f3 {[%clk 0:01:38.4]} 28... Rf4 {[%clk 0:01:31.7]} 29. Qd1
{[%clk 0:01:34.8]} 29... Rb2 {[%clk 0:01:27.7]} 30. Qd7 {[%clk 0:01:30.2]} 30...
Kf8 {[%clk 0:01:20.6]} 31. Qc8+ {[%clk 0:01:25.9]} 31... Kf7 {[%clk 0:01:19.6]}
32. Qxc5 {[%clk 0:01:25.8]} 32... Rxh4 {[%clk 0:01:16.2]} 33. Qd5+ {[%clk
0:01:21.2]} 33... Kf8 {[%clk 0:01:13]} 34. Qxe5 {[%clk 0:01:19]} 34... Rb1+
{[%clk 0:01:12.7]} 35. Kf2 {[%clk 0:01:18.4]} 35... Rhh1 {[%clk 0:01:13.2]} 36.
Qh8+ {[%clk 0:01:13]} 36... Kf7 {[%clk 0:01:12.4]} 37. Ng5# {[%clk 0:01:13.6]}
1-0